Cogmind - Beta 16.1 @@@ ROGUE MODE // 2026.02.22 @ 12:22:54 Player: Legion Result: Destroyed by G-34 Mercenary with Small Laser Performance ------------- Evolutions (0) 0 Regions Visited (1) 200 Robots Destroyed (22) 110 Value Destroyed (360) 360 Prototype IDs (2) 40 Alien Tech Used (0) 0 Bonus (0) 0 TOTAL SCORE: 710 Bonus ------- None Cogmind --------- Core Integrity 0/250 Matter 300/300 Energy 100/100 System Corruption 7% Temperature Cool (6) Movement Core (50) Location -10/Materials Parts ------- > --- POWER (1) -------- (None) > --- PROPULSION (2) --- (None) > --- UTILITY (2) ------ (None) > --- WEAPON (2) ------- (None) > --- INVENTORY (5) ---- Light Ion Engine Improved Terrain Scanner Peak State ------------ > --- POWER ------------ Ion Engine > --- PROPULSION ------- Aluminum Leg Aluminum Leg > --- UTILITY ---------- Improved Terrain Scanner Improved Terrain Scanner > --- WEAPON ----------- EM Pulse Gun EM Pulse Gun > --- INVENTORY -------- Light Ion Engine Small Laser [Rating: 11] Favorites ----------- Power Ion Engine Engine Ion Engine Propulsion Aluminum Leg Leg Aluminum Leg Utility Targeting Computer Device Sensor Array Processor Targeting Computer Weapon EM Pulse Gun Energy Gun EM Pulse Gun Build | -11 -10 ------- Run | Yrd Mat Slots Evolved . | . . Power . | . . Propulsion . | . . Utility . | . . Weapon . | . . Parts Attached 13 | 8 5 Power 1 | 1 . Engine 1 | 1 . Core . | . . Reactor . | . . Propulsion 4 | 2 2 Treads . | . . Leg 4 | 2 2 Wheel . | . . Hover . | . . Flight . | . . Utility 5 | 2 3 Device 4 | 2 2 Storage . | . . Processor 1 | . 1 Hackware . | . . Protection . | . . Artifact . | . . Weapon 3 | 3 . Energy Gun 3 | 3 . Energy Cannon . | . . Ballistic Gun . | . . Ballistic Cannon . | . . Launcher . | . . Special Weapon . | . . Impact Weapon . | . . Slashing Weapon . | . . Piercing Weapon . | . . Special Melee Weapon . | . . Unidentified Prototypes . | . . Parts Lost 9 | . 9 Power 1 | . 1 Propulsion 3 | . 3 Utility 3 | . 3 Weapon 2 | . 2 Highest Loss Streak 5 | . 5 To Critical Strikes . | . . Average Backups 2 | 1 2 Power . | . 1 Propulsion . | . . Utility . | . . Weapon . | . . Tool/Special . | . . Unused Backups 1 | . 1 Power 1 | . 1 Propulsion . | . . Utility . | . . Weapon . | . . Tool/Special . | . . Average Slot Usage (%) 84 | . 84 Engine 13 | . 13 Leg 24 | . 24 Device 12 | . 12 Processor 13 | . 13 Energy Gun 20 | . 20 Peak Build Rating 11 | 11 9 Average Rating 6 | 6 6 On Entrance 4 | . 8 Avg Prop Armor Cover (%) . | . . Naked Turns 3 | . 3 Heaviest Build 10 | 10 10 Greatest Support 20 | 20 20 Greatest Overweight (x) 1 | 1 . Average Overweight (x) . | . . Largest Inventory Capacity 5 | 5 5 Average Capacity 5 | 5 5 Most Carried 4 | 3 4 Average Carried 2 | 1 2 Final Capacity 5 | 5 5 Final Carried 2 | 2 2 Class Distribution -------------------- 100% | Mutant Dominant Class ---------------- Mutant | -10/Materials Resources | -11 -10 ----------- Run | Yrd Mat Matter Collected 319 | 245 74 Remotely . | . . Salvage Created 695 | 143 552 Parts 51 | 16 35 Haulers Intercepted . | . . Recyclers Shooed 3 | 1 2 Parts Field Recycled . | . . Retrieved Matter . | . . Parts Self-Destructed . | . . Prevented . | . . Parts Restored . | . . Kills | -11 -10 ------- Run | Yrd Mat Combat Hostiles Destroyed 7 | . 7 Guns 6 | . 6 AOE 1 | . 1 Classes Destroyed 7 | 3 4 Worker 4 | 2 2 Builder 1 | . 1 Tunneler 4 | 4 . Recycler 3 | 1 2 Watcher 3 | . 3 Swarmer 1 | . 1 Grunt 6 | . 6 Best Kill Streak 6 | 6 4 Combat Bots Only 1 | . 1 Max Kills in Single Turn 2 | 1 2 Gunslinging . | . . Exploded 1 | . 1 Melee . | . . Uniques/NPCs Destroyed . | . . Combat | -11 -10 -------- Run | Yrd Mat Hostile Shots Fired 75 | . 75 Missed 22 | . 22 Hits 53 | . 53 Projectile 53 | . 53 Damage Taken 776 | . 776 Core 255 | . 255 Absorbed by Shields . | . . Regen/Repaired (Parts) 4 | . 4 Core Remaining (%) 100 | 100 . Volleys Fired 74 | 16 58 Largest 2 | 2 2 Hottest 80 | 80 80 Shots Fired 106 | 32 74 Gun 106 | 32 74 Cannon . | . . Launcher . | . . Special . | . . Kinetic . | . . Thermal . | . . Explosive . | . . Electromagnetic 106 | 32 74 Robot Hit Streak 6 | 5 6 Robot Miss Streak 5 | 3 5 Penetration Max . | . . Secondary Targets . | . . Shots Hit Robots 61 | 20 41 Core Hits 31 | 8 23 Critical Kills . | . . Critical Parts Destroyed . | . . Critical Strikes 1 | . 1 Corrupt 1 | . 1 Melee Attacks . | . . Impact . | . . Slashing . | . . Piercing . | . . Sneak Attacks . | . . Combat Hostiles . | . . Follow-up Attacks . | . . Damage Inflicted 1265 | 326 939 Guns 794 | 232 562 Cannons . | . . Explosions 306 | 64 242 Melee . | . . Ramming 165 | 30 135 Kinetic . | . . Thermal 306 | 64 242 Explosive . | . . Electromagnetic 794 | 232 562 Impact . | . . Slashing . | . . Piercing . | . . Highest Corruption 7 | . 7 Average Corruption 2 | . 2 Corruption Purged . | . . Corruption Blocked . | . . Effects 5 | . 5 Message Errors 1 | . 1 Matter Fused 3 | . 3 Data Loss (minor) 1 | . 1 Overload Shots . | . . Overflow Damage 207 | . 207 Projectiles . | . . Explosions 207 | . 207 Melee . | . . Knockbacks . | . . Impact . | . . Kinetic . | . . Secondary . | . . Self-Inflicted Damage 182 | . 182 Shots 2 | . 2 Rammed 18 | . 18 Targets Rammed 86 | 13 73 Kicked 68 | 13 55 Crushed . | . . Highest Temperature 150 | 108 150 Average Temperature 47 | 40 52 Received Heat Transfer 315 | . 315 Siege Activations . | . . Martial Activations . | . . Shielding Activations . | . . Robots Disrupted . | . . Combat Hostiles . | . . Robots Corrupted . | . . Combat Hostiles . | . . Parts Fried 2 | . 2 Impact Corruptions . | . . Robots Melted . | . . Combat Hostiles . | . . Parts Melted . | . . Heat Transferred 300 | 100 200 Parts Sabotaged . | . . Parts Stolen . | . . Parts Stripped . | . . Power Chain Reactions 3 | 2 1 Alert | -11 -10 ------- Run | Yrd Mat Maximum Alert Level . | . . Low Security (%) 100 | 100 100 Level 1 . | . . Level 2 . | . . Level 3 . | . . Level 4 . | . . Level 5 . | . . High Security . | . . Max Security . | . . Peak Influence 137 | 15 137 Initial . | . . Average 40 | 2 48 Influence Increases 378 | 35 343 Destroy 0b10 Robot/C 140 | . 140 Destroy 0b10 Robot/NC 75 | 35 40 Destroy Leader 36 | . 36 Successful Hack 5 | . 5 Disable Machine 45 | . 45 Destroy Structure 17 | . 17 Lose Combat Pursuer 60 | . 60 Influence Decreases 351 | 35 316 Time Decay 261 | 35 226 Lost Part 90 | . 90 Squads Dispatched 3 | . 3 Investigation 2 | . 2 Extermination . | . . Reinforcement 1 | . 1 Assault . | . . Garrison . | . . Intercept . | . . Searches Triggered . | . . Construction Impeded . | . . Haulers Reinforced . | . . Active Scanning Responses . | . . Cargo Convoy Interrupts . | . . Stealth | -11 -10 --------- Run | Yrd Mat Distress Signals . | . . Communications Jammed . | . . Distress Signals . | . . Times Spotted 17 | . 17 Peak Tracking Total 3 | . 3 Tactical Retreats 3 | . 3 Traps | -11 -10 ------- Run | Yrd Mat Traps Triggered 2 | . 2 Indirectly . | . . Trap Hack Attempts . | . . Triggered . | . . Disarmed . | . . Reprogrammed . | . . Reused . | . . Traps Extracted . | . . Installed . | . . Triggered . | . . Machines | -11 -10 ---------- Run | Yrd Mat Machines Disabled 3 | . 3 Max in Single Turn 2 | . 2 Machines Repaired . | . . Machines Dismantled . | . . Machines Sabotaged . | . . Overloaded Fab Kills . | . . Hacking | -11 -10 --------- Run | Yrd Mat Machines Accessed 7 | . 7 Terminals 5 | . 5 Fabricators . | . . Repair Stations 1 | . 1 Recycling Units 1 | . 1 Scanalyzers . | . . Garrison Access . | . . Total Hacks 15 | . 15 Successful 8 | . 8 Failed 7 | . 7 Catastrophic . | . . Database Lockouts . | . . Manual . | . . Terminals 10 | . 10 Fabricators . | . . Repair Stations 2 | . 2 Recycling Units 3 | . 3 Scanalyzers . | . . Garrison Access . | . . Terminal Hacks 3 | . 3 Robot Analysis 1 | . 1 Prototype ID Bank 1 | . 1 Zone Layout 1 | . 1 Fabricator Hacks . | . . Repair Station Hacks 2 | . 2 Scan Component 1 | . 1 Repair 1 | . 1 Recycling Unit Hacks 3 | . 3 Recycle Component 1 | . 1 Report Inventory 1 | . 1 Retrieve Matter 1 | . 1 Scanalyzer . | . . Garrison Access Hacks . | . . Unauthorized Hacks . | . . Terminals . | . . Fabricators . | . . Repair Stations . | . . Recycling Units . | . . Scanalyzers . | . . Garrison Access . | . . Data Cores Recovered . | . . Used . | . . Hacking Detections 6 | . 6 Full Trace Events 1 | . 1 Feedback Events . | . . Feedback Blocked . | . . Robot Schematics Acquired . | . . Robots Built . | . . Authchips . | . . Time . | . . Total Robot Build Rating . | . . Part Schematics Acquired . | . . Parts Built . | . . Authchips . | . . Time . | . . Total Part Build Rating . | . . Part Studies Acquired . | . . Parts Repaired 1 | . 1 Time 38 | . 38 Parts Recycled 1 | . 1 Recycled Matter . | . . Retrieved Matter . | . . Retrieved Components . | . . Parts Scanalyzed . | . . Part Schematics Acquired . | . . Parts Damaged . | . . Bothacking | -11 -10 ------------ Run | Yrd Mat Used RIF Installer . | . . Robots Hacked . | . . Non-combat . | . . Combat . | . . Robot Hacks Applied . | . . Relay Couplers Released . | . . Fabnet Peak Effective % . | . . Robots Rewired . | . . Allies Hacked . | . . Hacks Repelled . | . . Allies | -11 -10 -------- Run | Yrd Mat Total Allies . | . . Largest Group . | . . Highest-Rated Group . | . . Highest-Rated Ally . | . . Total Orders . | . . Ally Attacks . | . . Total Damage . | . . Kills . | . . Allies Corrupted . | . . Allies Melted . | . . Intel | -11 -10 ------- Run | Yrd Mat Active Infowar (turns) 860 | 95 765 Sensors 548 | . 548 Terrain 312 | 95 217 Robot Analysis Total 1 | . 1 Derelict Logs Recovered . | . . Drone Launches . | . . Drone Recoveries . | . . Exploration | -11 -10 ------------- Run | Yrd Mat Turns Passed 1029 | 183 846 Spaces Moved 494 | 89 405 Core 6 | 6 . Treads . | . . Legs 488 | 83 405 Wheels . | . . Hover . | . . Flight . | . . Fastest Speed 50 | 50 120 Average Speed 119 | 116 120 Slowest Speed 120 | 120 120 Overloaded Moves . | . . Propulsion Burnouts . | . . Robots Hopped . | . . Potential Cave-ins . | . . Cave-ins Triggered . | . . Exploration Rate (%) 40 | 4 76 Regions Visited 1 Branch Regions . Pre-discovered Areas . | . . Known Exits Taken . | . . Unknown Exits Taken 1 | 1 . Scrap Searched . | . . Spaces Dug . | . . Terrain Destroyed 22 | 6 16 Melee . | . . Projectile . | . . AOE 22 | 6 16 Terrain Rammed . | . . Walls Destroyed . | . . Machines Disabled . | . . Actions | -11 -10 --------- Run | Yrd Mat Total 812 | 132 680 Wait 131 | . 131 Move 493 | 88 405 Hop . | . . Pick Up 4 | 2 2 Fast Attach 10 | 7 3 Attach 5 | 2 3 Detach 6 | 3 3 Swap 1 | . 1 Drop 2 | 1 1 Fire 74 | 16 58 Melee . | . . Ram 18 | . 18 Kick 68 | 13 55 Crush . | . . Escape Stasis . | . . Rewire . | . . Trap . | . . Miscellaneous . | . . Route ------- -11/Scrapyard -10/Materials (discovered 3 exits: [*Mat x2] / [*Min]) History --------- Turn | Location | Event 16 | -11/Scrapyard | Discovered new exit (range 15) 184 | -11/Scrapyard | Entered Materials 302 | -10/Materials | Build established: Mutant 365 | -10/Materials | Repaired Imp. Terrain Scanner 373 | -10/Materials | Discovered new exit (range 9) 592 | -10/Materials | Discovered new exit (range 12) 672 | -10/Materials | Lost 3 parts (1n1u1w) 716 | -10/Materials | Discovered new exit (range 16) 984 | -10/Materials | Derelicts attacked the area 997 | -10/Materials | Core integrity fell below 50% 1023 | -10/Materials | Core integrity fell below 20% 1030 | -10/Materials | Destroyed by G-34 Mercenary with Small Laser Last Messages --------------- 01000_ Ion Engine destroyed. 01000_ Kicked G-34 Mercenary. 01002_ Aluminum Leg destroyed. 01003_ Kicked G-34 Mercenary. 01009_ Kicked G-34 Mercenary out of the way. 01010_ Kicked G-34 Mercenary. 01012_ Aluminum Leg destroyed. 01012_ Slammed into G-34 Mercenary. 01014_ Sensor Array destroyed. 01014_ Slammed into G-34 Mercenary. 01017_ Destabilizing: Core damaged (-10). 01018_ Slammed into G-34 Mercenary. 01020_ K-01 Serf cleans the Electrolysis Chamber. 01020_ Slammed into G-34 Mercenary. 01027_ Targeting Computer destroyed. 01027_ System corrupted by crushing effect (+5). 01028_ Slammed into G-34 Mercenary. 01030_ System corrupted: Matter fused (-5). 01030_ Acquired 5 matter. 01030_ K-01 Serf collects debris. Map ----- +----------------------------------------------------+ | ## """ """ # #"+#####????? | | ###### ## """ """ # #????????? | | ?#??## ## # !! #????????? | | ?#??## ############ !! ########## | | ###### #??????????# !! ## # | | #???????? ?# ## "T" # | | #??????????# ## # | | #?????????# "" ## """""# | | #######%#####? ????# "Y # """""# | | ##"% #??????+ "" + """""# | | "" ### " #??????# # """""# | | T" + % #? ????# # """""# | | "" ### #??????############## # """""# | | #?# #???? ??????????????# # """""# | | #?## ^ ##?######????????????? #???????? | | #??#^ ^#?""" #????######??? #???????? | | #??# #???" !#????# ??? #???????? | | !#??# +???" #????#! ""? # ????????? | | #####??? #???? #????# """ ???????????? | | ???????? < #???? % ?????#! """?????????????? | | ???????? #????#+#?????# ??????????????? | | ?#??????####??###=##???###+##??????#???????? | | ????###########%%%r#####t %%##### #???????? | | ##### %%"k%%%%%%%%% #???????? | | % % %%%%%%g% #???????? | | ##+##+######### ##### @% ##### +???????? | | ! ######+############??????#???????? | | # #???????????????????? | | " """ """ # """" """" #???????????????????? | | " """ """ # """" """" #???????????????????? | | " """ """ # """" """" #???????????????????? | | # #???????????????????? | | ##########?###########?????????????????????? | | | | | | | | | | | | | | | | | | | | | | | | | | | | | | | | | | | +----------------------------------------------------+ Best States ------------- Heat Dissipation 25 Energy Generation 10 Energy Capacity 250 Matter Stores 300 Matter Capacity 300 Sight Range 16 Robot Scan Range 14 Terrain Scan Range 16 Terrain Scan Density 10 Evasion (%) 55 Targeting Accuracy 5 Item Schematics ----------------- None Robot Schematics ------------------ None Fabricated ------------ Nothing Repaired ---------- Imp. Terrain Scanner | 81% | -10/Materials Studied --------- None Alien Tech Used ----------------- None Achievements -------------- None Challenges ------------ None Game ------ Seed ThrowingCorruptionCapacitor Manual? 0 Play Time 00:15:54 Cumulative 22.8 hours Start 2026.02.22 @ 12:07:08 End 2026.02.22 @ 12:22:54 Sessions 1 Manual Loads 0 Difficulty Rogue Special Mode None Game No. 20 Rogue 15 Adventurer 5 Explorer 0 Win Type - Total 0 Types 0/0/0/0/0/0/0/0/0/0 Lore% 12 Gallery% 20 Achievement% 17 Wizard Run 0 Options --------- Layout 0 ASCII 0 Keyboard 1 Movement Numpad Keybinds 0 Fullscreen 1 Font 24/Smallcaps Map View 76x50 Zoom Use 0% Tactical HUD 1 Map Filters NONE Filters NONE Steam 1 RUN: 01bc351b-5a8f-4105-a93f-9d0881bdef65